fUSD/lending_fUSD_20241104
["ID","MTS","AMOUNT","RATE_DAILY","PERIOD"]
[341259975,1730733047380,-500.0,0.00035616,2]
[341259976,1730733047389,-500.0,0.00035616,2]
[341259977,1730733047398,-500.0,0.00035616,2]
[341259978,1730733047407,-1757.96,0.00035616,2]
[341259979,1730733047416,-500.0,0.00035616,2]
[341259980,1730733047426,-500.0,0.00035616,2]
[341259981,1730733047435,-500.0,0.00035616,2]
[341259982,1730733047616,-500.0,0.00035616,2]
[341259983,1730733047626,-500.0,0.00035616,2]
[341259984,1730733047636,-508.53,0.00035616,2]
[341259985,1730733047645,-500.0,0.00035616,2]
[341259986,1730733047654,-500.0,0.00035616,2]
[341259987,1730733047664,-514.79739439,0.00035616,2]
[341259988,1730733047673,-500.0,0.00035616,2]
[341259989,1730733047686,-1743.06,0.00035616,2]
[341259990,1730733047695,-757.12,0.00035616,2]
[341259991,1730733047705,-500.0,0.00035616,2]
[341259992,1730733047714,-500.0,0.00035616,2]
[341259993,1730733047723,-500.0,0.00035616,2]
[341259994,1730733047734,-500.0,0.00035616,2]
[341259995,1730733047744,-500.0,0.00035616,2]
[341259996,1730733047756,-833.25,0.00035616,2]
[341259997,1730733047766,-500.0,0.00035616,2]
[341259998,1730733047775,-500.0,0.00035616,2]
[341259999,1730733047784,-506.46785794,0.00035616,2]
[341260000,1730733047793,-508.62392846,0.00035616,2]
[341260001,1730733047803,-1379.97,0.00035616,2]
[341260002,1730733047811,-522.56728714,0.00035616,2]
[341260003,1730733047821,-535.95359728,0.00035616,2]
[341260004,1730733047830,-500.0,0.00035616,2]
[341260005,1730733047839,-537.51849026,0.00035616,2]
[341260006,1730733047849,-500.0,0.00035616,2]
[341260007,1730733047859,-500.0,0.00035616,2]
[341260008,1730733047868,-500.0,0.00035616,2]
[341260009,1730733047878,-500.0,0.00035616,2]
[341260010,1730733047887,-614.08208606,0.00035616,2]
[341260011,1730733047896,-535.94937043,0.00035616,2]
[341260012,1730733047905,-500.0,0.00035616,2]
[341260013,1730733047914,-500.0,0.00035616,2]
[341260014,1730733047924,-801.02,0.00035616,2]
[341260015,1730733047933,-548.38098553,0.00035616,2]
[341260016,1730733047942,-500.0,0.00035616,2]
[341260017,1730733047951,-500.0,0.00035616,2]
[341260018,1730733047962,-500.0,0.00035616,2]
[341260019,1730733047971,-535.90400359,0.00035616,2]
[341260020,1730733047980,-500.0,0.00035616,2]
[341260021,1730733047990,-851.53,0.00035616,2]
[341260022,1730733047999,-500.0,0.00035616,2]
[341260023,1730733048008,-500.0,0.00035616,2]
[341260024,1730733048018,-500.0,0.00035616,2]
[341260025,1730733048027,-500.0,0.00035616,2]
[341260026,1730733048036,-594.64443692,0.00035616,2]
[341260027,1730733048045,-500.0,0.00035616,2]
[341260028,1730733048055,-500.0,0.00035616,2]
[341260029,1730733048064,-500.0,0.00035616,2]
[341260030,1730733048073,-500.0,0.00035616,2]
[341260031,1730733048083,-531.11980612,0.00035616,2]
[341260032,1730733048092,-500.0,0.00035616,2]
[341260033,1730733048102,-500.0,0.00035616,2]
[341260034,1730733048111,-637.9920895,0.00035616,2]
[341260035,1730733048121,-500.0,0.00035616,2]
[341260036,1730733048130,-683.47,0.00035616,2]
[341260037,1730733048139,-500.0,0.00035616,2]
[341260038,1730733048148,-500.0,0.00035616,2]
[341260039,1730733048157,-500.0,0.00035616,2]
[341260040,1730733048167,-500.0,0.00035616,2]
[341260041,1730733048176,-500.0,0.00035616,2]
[341260042,1730733048186,-500.0,0.00035616,2]
[341260043,1730733048196,-500.0,0.00035616,2]
[341260044,1730733048205,-500.0,0.00035616,2]
[341260045,1730733048215,-500.0,0.00035616,2]
[341260046,1730733048224,-500.0,0.00035616,2]
[341260047,1730733048234,-500.0,0.00035616,2]
[341260048,1730733048243,-767.64,0.00035616,2]
[341260049,1730733048252,-500.0,0.00035616,2]
[341260050,1730733048261,-785.68,0.00035616,2]
[341260051,1730733048271,-536.42880359,0.00035616,2]
[341260052,1730733048281,-500.0,0.00035616,2]
[341260053,1730733048290,-500.0,0.00035616,2]
[341260054,1730733048299,-575.06040679,0.00035616,2]
[341260055,1730733048308,-500.0,0.00035616,2]
[341260056,1730733048317,-522.84448126,0.00035616,2]
[341260057,1730733048327,-500.0,0.00035616,2]
[341260058,1730733048339,-500.0,0.00035616,2]
[341260059,1730733048348,-527.27320219,0.00035616,2]
[341260060,1730733048357,-500.0,0.00035616,2]
[341260061,1730733048366,-670.4,0.00035616,2]
[341260062,1730733048375,-500.0,0.00035616,2]
[341260063,1730733048384,-536.52720662,0.00035616,2]
[341260064,1730733048393,-500.0,0.00035616,2]
[341260065,1730733048403,-500.0,0.00035616,2]
[341260066,1730733048413,-500.0,0.00035616,2]
[341260067,1730733048422,-500.0,0.00035616,2]
[341260068,1730733048432,-500.0,0.00035616,2]
[341260069,1730733048442,-548.32,0.00035616,2]
[341260070,1730733048452,-843.22,0.00035616,2]
[341260071,1730733048462,-509.38,0.00035616,2]
[341260072,1730733048471,-500.0,0.00035616,2]
[341260073,1730733048481,-522.93375141,0.00035616,2]
[341260074,1730733048490,-500.0,0.00035616,2]
[341260075,1730733048500,-500.0,0.00035616,2]
[341260076,1730733048509,-500.0,0.00035616,2]
[341260077,1730733048519,-500.0,0.00035616,2]
[341260078,1730733048528,-500.0,0.00035616,2]
[341260079,1730733048538,-500.0,0.00035616,2]
[341260080,1730733048547,-500.0,0.00035616,2]
[341260081,1730733048557,-500.0,0.00035616,2]
[341260082,1730733048566,-528.76233635,0.00035616,2]
[341260083,1730733048575,-768.25,0.00035616,2]
[341260084,1730733048587,-500.0,0.00035616,2]
[341260085,1730733048596,-512.25339663,0.00035616,2]
[341260086,1730733048609,-500.0,0.00035616,2]
[341260087,1730733048619,-630.64215182,0.00035616,2]
[341260088,1730733048628,-500.0,0.00035616,2]
[341260089,1730733048637,-500.0,0.00035616,2]
[341260090,1730733048646,-1336.76,0.00035616,2]
[341260091,1730733048656,-1336.76,0.00035616,2]
[341260092,1730733048666,-500.0,0.00035616,2]
[341260093,1730733048675,-1336.76,0.00035616,2]
[341260094,1730733048689,-500.0,0.00035616,2]
[341260095,1730733048698,-1336.76,0.00035616,2]
[341260096,1730733048708,-500.0,0.00035616,2]
[341260097,1730733048717,-1336.76,0.00035616,2]
[341260098,1730733048727,-537.59,0.00035616,2]
[341260099,1730733048737,-500.0,0.00035616,2]
[341260100,1730733048746,-500.0,0.00035616,2]
[341260101,1730733048755,-692.68,0.00035616,2]
[341260102,1730733048766,-500.0,0.00035616,2]
[341260103,1730733048775,-500.0,0.00035616,2]
[341260104,1730733048784,-240.64776215,0.00035616,2]
[341260105,1730733048793,-500.0,0.00035616,2]
[341260106,1730733048803,-500.0,0.00035616,2]
[341260107,1730733048812,-500.0,0.00035616,2]
[341260108,1730733048822,-640.48,0.00035616,2]
[341260109,1730733048831,-500.0,0.00035616,2]
[341260110,1730733048841,-500.0,0.00035616,2]
[341260111,1730733048850,-1767.58,0.00035616,2]
[341260112,1730733048859,-566.76280555,0.00035616,2]
[341260113,1730733048868,-515.96,0.00035616,2]
[341260114,1730733048878,-888.36,0.00035616,2]
[341260115,1730733048887,-500.0,0.00035616,2]
[341260116,1730733048896,-295.050275,0.00035616,7]
[341260117,1730733048905,-500.0,0.00035616,2]
[341260118,1730733048914,-500.0,0.00035616,2]
[341260119,1730733048924,-500.0,0.00035616,2]
[341260120,1730733048934,-500.0,0.00035616,2]
[341260121,1730733048944,-413.23486989,0.00035616,2]
[341260122,1730733048953,-718.99,0.00035616,2]
[341260123,1730733048963,-578.72,0.00035616,2]
[341260124,1730733048972,-500.0,0.00035616,2]
[341260125,1730733048982,-500.0,0.00035616,2]
[341260126,1730733048992,-500.0,0.00035616,2]
[341260127,1730733049001,-685.27,0.00035616,2]
[341260128,1730733049011,-500.0,0.00035616,2]
[341260129,1730733049020,-500.0,0.00035616,2]
[341260130,1730733049030,-250.0,0.00035616,2]
[341260131,1730733049039,-500.0,0.00035616,2]
[341260132,1730733049049,-581.95461224,0.00035616,2]
[341260133,1730733049058,-500.0,0.00035616,2]
[341260134,1730733049068,-500.0,0.00035616,2]
[341260135,1730733049077,-557.60229381,0.00035616,2]
[341260136,1730733049088,-500.0,0.00035616,2]
[341260137,1730733049097,-500.0,0.00035616,2]
[341260138,1730733049106,-500.0,0.00035616,2]
[341260139,1730733049116,-500.0,0.00035616,2]
[341260140,1730733049125,-500.0,0.00035616,2]
[341260141,1730733049134,-500.0,0.00035616,2]
[341260142,1730733049144,-533.08573291,0.00035616,2]
[341260143,1730733049154,-1154.68,0.00035616,2]
[341260144,1730733049164,-500.0,0.00035616,2]
[341260145,1730733049174,-500.0,0.00035616,2]
[341260146,1730733049184,-1301.73,0.00035616,2]
[341260147,1730733049194,-521.29886027,0.00035616,2]
[341260148,1730733049203,-500.0,0.00035616,2]
[341260149,1730733049212,-500.0,0.00035616,2]
[341260150,1730733049222,-500.0,0.00035616,2]
[341260151,1730733049232,-568.06732511,0.00035616,2]
[341260152,1730733049241,-500.0,0.00035616,2]
[341260153,1730733049251,-500.0,0.00035616,2]
[341260154,1730733049261,-446.50584306,0.00035616,2]
[341260155,1730733049270,-500.0,0.00035616,2]
[341260156,1730733049280,-500.0,0.00035616,2]
[341260157,1730733049290,-500.0,0.00035616,2]
[341260158,1730733049299,-500.0,0.00035616,2]
[341260159,1730733049309,-1058.23,0.00035616,2]
[341260160,1730733049318,-500.0,0.00035616,2]
[341260161,1730733049327,-597.04,0.00035616,2]
[341260162,1730733049339,-507.70891845,0.00035616,2]
[341260163,1730733049348,-500.0,0.00035616,2]
[341260164,1730733049358,-583.70894996,0.00035616,2]
[341260165,1730733049367,-925.1,0.00035616,2]
[341260166,1730733049378,-599.48,0.00035616,2]
[341260167,1730733049388,-500.0,0.00035616,2]
[341260168,1730733049398,-500.0,0.00035616,2]
[341260169,1730733049408,-532.68516055,0.00035616,2]
[341260170,1730733049417,-500.0,0.00035616,2]
[341260171,1730733049427,-561.9936013,0.00035616,2]
[341260172,1730733049437,-539.63575592,0.00035616,2]
[341260173,1730733049446,-500.0,0.00035616,2]
[341260174,1730733049456,-510.53,0.00035616,2]
[341260175,1730733049465,-500.0,0.00035616,2]
[341260176,1730733049475,-544.56746173,0.00035616,2]
[341260177,1730733049484,-500.0,0.00035616,2]
[341260178,1730733049494,-250.0,0.00035616,2]
[341260179,1730733049503,-500.0,0.00035616,2]
[341260180,1730733049512,-500.0,0.00035616,2]
[341260181,1730733049522,-803.48,0.00035616,2]
[341260182,1730733049532,-500.0,0.00035616,2]
[341260183,1730733049541,-500.0,0.00035616,2]
[341260184,1730733049551,-500.0,0.00035616,2]
[341260185,1730733049561,-500.0,0.00035616,2]
[341260186,1730733049570,-567.03,0.00035616,2]
[341260187,1730733049580,-500.0,0.00035616,2]
[341260188,1730733049590,-500.0,0.00035616,2]
[341260189,1730733049600,-500.0,0.00035616,2]
[341260190,1730733049609,-404.01382298,0.00035616,2]
[341260191,1730733049619,-500.0,0.00035616,2]
[341260192,1730733049629,-348.90471859,0.00035616,2]
[341260193,1730733049639,-500.0,0.00035616,2]
[341260194,1730733049649,-669.23,0.00035616,2]
[341260195,1730733049658,-500.0,0.00035616,2]
[341260196,1730733049667,-642.70079304,0.00035616,2]
[341260197,1730733049677,-393.20094945,0.00035616,2]
[341260198,1730733049690,-535.81421805,0.00035616,2]
[341260199,1730733049699,-500.0,0.00035616,2]
[341260200,1730733049708,-696.43,0.00035616,2]
[341260201,1730733049718,-500.0,0.00035616,2]
[341260202,1730733049728,-500.0,0.00035616,2]
[341260203,1730733049737,-500.0,0.00035616,2]
[341260204,1730733049747,-500.0,0.00035616,2]
[341260205,1730733049758,-500.0,0.00035616,2]
[341260206,1730733049767,-511.47649082,0.00035616,2]
[341260207,1730733049776,-500.0,0.00035616,7]
[341260208,1730733049786,-500.0,0.00035616,2]
[341260209,1730733049796,-500.0,0.00035616,2]
[341260210,1730733049806,-500.0,0.00035616,2]
[341260211,1730733049815,-540.11903416,0.00035616,2]
[341260212,1730733049825,-655.76,0.00035616,2]
[341260213,1730733049836,-500.0,0.00035616,2]
[341260214,1730733049845,-500.0,0.00035616,2]
[341260215,1730733049854,-500.0,0.00035616,2]
[341260216,1730733049863,-520.3,0.00035616,2]
[341260217,1730733049874,-572.83354962,0.00035616,2]
[341260218,1730733049885,-592.09036748,0.00035616,2]
[341260219,1730733049896,-500.0,0.00035616,2]
[341260220,1730733049905,-500.0,0.00035616,2]
[341260221,1730733049915,-500.0,0.00035616,2]
[341260222,1730733049925,-500.0,0.00035616,2]
[341260223,1730733049935,-500.0,0.00035616,2]
[341260224,1730733049946,-500.0,0.00035616,2]
[341260225,1730733049957,-500.0,0.00035616,2]
[341260226,1730733049967,-500.0,0.00035616,2]
[341260227,1730733049978,-500.0,0.00035616,2]
[341260228,1730733049988,-500.0,0.00035616,2]
[341260229,1730733049998,-500.0,0.00035616,2]
[341260230,1730733050008,-517.3651331,0.00035616,2]
[341260231,1730733050019,-500.0,0.00035616,2]
[341260232,1730733050029,-546.11,0.00035616,2]
[341260233,1730733050038,-500.0,0.00035616,2]
[341260234,1730733050047,-532.12,0.00035616,2]
[341260235,1730733050056,-500.0,0.00035616,2]
[341260236,1730733050066,-500.0,0.00035616,2]
[341260237,1730733050076,-500.0,0.00035616,2]
[341260238,1730733050092,-513.31873985,0.00035616,2]
[341260239,1730733050101,-500.0,0.00035616,2]
[341260240,1730733050110,-518.1279549,0.00035616,2]
[341260241,1730733050119,-500.0,0.00035616,2]
[341260242,1730733050128,-1154.04,0.00035616,2]
[341260243,1730733050138,-500.0,0.00035616,2]
[341260244,1730733050147,-1359.98,0.00035616,2]
[341260245,1730733050157,-500.0,0.00035616,2]
[341260246,1730733050166,-500.0,0.00035616,2]
[341260247,1730733050176,-764.02,0.00035616,2]
[341260248,1730733050185,-500.0,0.00035616,2]
[341260249,1730733050195,-581.15820161,0.00035616,2]
[341260250,1730733050204,-500.0,0.00035616,2]
[341260251,1730733050213,-500.0,0.00035616,2]
[341260252,1730733050222,-602.0043391,0.00035616,2]
[341260253,1730733050232,-517.53394548,0.00035616,2]
[341260254,1730733050241,-500.0,0.00035616,2]
[341260255,1730733050250,-693.59,0.00035616,2]
[341260256,1730733050259,-500.0,0.00035616,2]
[341260257,1730733050268,-500.0,0.00035616,2]
[341260258,1730733050278,-500.0,0.00035616,2]
[341260259,1730733050287,-500.0,0.00035616,2]
[341260260,1730733050297,-500.0,0.00035616,2]
[341260261,1730733050444,-500.0,0.00035616,2]
[341260262,1730733050454,-542.40482178,0.00035616,2]
[341260263,1730733050463,-500.0,0.00035616,2]
[341260264,1730733050472,-500.0,0.00035616,2]
[341260265,1730733050481,-500.0,0.00035616,2]
[341260266,1730733050490,-500.0,0.00035616,2]
[341260267,1730733050500,-870.94,0.00035616,2]
[341260268,1730733050509,-500.0,0.00035616,2]
[341260269,1730733050528,-1167.93,0.00035616,2]
[341260270,1730733050539,-500.0,0.00035616,2]
[341260271,1730733050549,-514.97412187,0.00035616,2]
[341260272,1730733050559,-558.81422479,0.00035616,2]
[341260273,1730733050569,-500.0,0.00035616,2]
[341260274,1730733050578,-154.59,0.00035616,2]
[341260275,1730733050591,-721.88,0.00035616,2]
[341260276,1730733050601,-720.67,0.00035616,2]
[341260277,1730733050611,-509.47475016,0.00035616,2]
[341260278,1730733050620,-1045.75,0.00035616,2]
[341260279,1730733050630,-500.0,0.00035616,2]
[341260280,1730733050640,-500.0,0.00035616,2]
[341260281,1730733050649,-500.0,0.00035616,2]
[341260282,1730733050659,-515.36831931,0.00035616,2]
[341260283,1730733050668,-233.49146835,0.00035616,2]
[341260284,1730733050679,-847.93,0.00035616,2]
[341260285,1730733050691,-511.57,0.00035616,2]
[341260286,1730733050700,-500.0,0.00035616,2]
[341260287,1730733050710,-500.0,0.00035616,2]
[341260288,1730733050720,-500.0,0.00035616,2]
[341260289,1730733050730,-571.95003444,0.00035616,2]
[341260290,1730733050740,-500.0,0.00035616,2]
[341260291,1730733050750,-500.0,0.00035616,2]
[341260292,1730733050761,-500.0,0.00035616,2]
[341260293,1730733050771,-589.36360111,0.00035616,2]
[341260294,1730733050781,-500.0,0.00035616,2]
[341260295,1730733050791,-500.0,0.00035616,2]
[341260296,1730733050800,-500.0,0.00035616,2]
[341260297,1730733050810,-500.0,0.00035616,2]
[341260298,1730733050819,-500.0,0.00035616,2]
[341260299,1730733050828,-500.0,0.00035616,2]
[341260300,1730733050839,-500.0,0.00035616,2]
[341260301,1730733050850,-2000.0,0.00035616,2]
[341260302,1730733050859,-500.0,0.00035616,2]
[341260303,1730733050869,-500.0,0.00035616,2]
[341260304,1730733050879,-519.05527493,0.00035616,2]
[341260305,1730733050889,-899.84,0.00035616,2]
[341260306,1730733050899,-687.72,0.00035616,2]
[341260307,1730733050909,-500.0,0.00035616,2]
[341260308,1730733050919,-500.0,0.00035616,2]
[341260309,1730733050928,-500.0,0.00035616,2]
[341260310,1730733050938,-500.0,0.00035616,2]
[341260311,1730733050947,-500.0,0.00035616,2]
[341260312,1730733050957,-500.0,0.00035616,2]
[341260313,1730733050967,-681.65,0.00035616,2]
[341260314,1730733050976,-500.0,0.00035616,2]
[341260315,1730733050986,-500.0,0.00035616,2]
[341260316,1730733050995,-500.0,0.00035616,2]
[341260317,1730733051006,-500.0,0.00035616,2]
[341260318,1730733051016,-583.33,0.00035616,2]
[341260319,1730733051026,-500.0,0.00035616,2]
[341260320,1730733051036,-1404.14,0.00035616,2]
[341260321,1730733051045,-500.0,0.00035616,2]
[341260322,1730733051055,-500.0,0.00035616,2]
[341260323,1730733051065,-500.0,0.00035616,2]
[341260324,1730733051075,-500.0,0.00035616,2]
[341260325,1730733051086,-500.0,0.00035616,2]
[341260326,1730733051096,-500.0,0.00035616,2]
[341260327,1730733051105,-502.78162334,0.00035616,2]
[341260328,1730733051115,-500.0,0.00035616,2]
[341260329,1730733051124,-500.0,0.00035616,2]
[341260330,1730733051134,-500.0,0.00035616,2]
[341260331,1730733051144,-569.71,0.00035616,2]
[341260332,1730733051153,-500.0,0.00035616,2]
[341260333,1730733051163,-500.0,0.00035616,2]
[341260334,1730733051173,-500.0,0.00035616,2]
[341260335,1730733051182,-500.0,0.00035616,2]
[341260336,1730733051192,-981.72,0.00035616,2]
[341260337,1730733051201,-500.0,0.00035616,2]
[341260338,1730733051211,-500.0,0.00035616,2]
[341260339,1730733051220,-526.10965602,0.00035616,2]
[341260340,1730733051230,-500.0,0.00035616,2]
[341260341,1730733051240,-500.0,0.00035616,2]
[341260342,1730733051249,-587.71,0.00035616,2]
[341260343,1730733051259,-500.0,0.00035616,2]
[341260344,1730733051268,-500.0,0.00035616,2]
[341260345,1730733051278,-300.0,0.00035616,2]
[341260346,1730733051287,-500.0,0.00035616,2]
[341260347,1730733051297,-500.0,0.00035616,2]
[341260348,1730733051307,-500.0,0.00035616,2]
[341260349,1730733051316,-545.73,0.00035616,2]
[341260350,1730733051326,-500.0,0.00035616,2]
[341260351,1730733051337,-1156.87,0.00035616,2]
[341260352,1730733051347,-500.0,0.00035616,2]
[341260353,1730733051356,-500.0,0.00035616,2]
[341260354,1730733051365,-500.0,0.00035616,2]
[341260355,1730733051375,-500.0,0.00035616,2]
[341260356,1730733051385,-200.0,0.00035616,2]
[341260357,1730733051394,-478.65301073,0.00035616,2]
[341260358,1730733051404,-520.68582657,0.00035616,2]
[341260359,1730733051413,-642.29,0.00035616,2]
[341260360,1730733051423,-500.0,0.00035616,2]
[341260361,1730733051432,-500.0,0.00035616,2]
[341260362,1730733051442,-500.0,0.00035616,2]
[341260363,1730733051452,-500.0,0.00035616,2]
[341260364,1730733051462,-1118.58,0.00035616,2]
[341260365,1730733051471,-500.0,0.00035616,2]
[341260366,1730733051481,-1249.37,0.00035616,2]
[341260367,1730733051491,-500.0,0.00035616,2]
[341260368,1730733051500,-500.0,0.00035616,2]
[341260369,1730733051509,-500.0,0.00035616,2]
[341260370,1730733051519,-500.0,0.00035616,2]
[341260371,1730733051529,-500.0,0.00035616,2]
[341260372,1730733051538,-523.89392467,0.00035616,2]
[341260373,1730733051548,-500.0,0.00035616,2]
[341260374,1730733051557,-277.82,0.00035616,2]
[341260375,1730733051567,-500.0,0.00035616,2]
[341260376,1730733051577,-1400.16,0.00035616,2]
[341260377,1730733051588,-500.0,0.00035616,2]
[341260378,1730733051597,-500.0,0.00035616,2]
[341260379,1730733051607,-500.0,0.00035616,2]
[341260380,1730733051617,-500.0,0.00035616,2]
[341260381,1730733051626,-259.85784418,0.00035616,2]
[341260382,1730733051636,-500.0,0.00035616,2]
[341260383,1730733051646,-402.8135253,0.00035616,2]
[341260384,1730733051655,-541.55909777,0.00035616,2]
[341260385,1730733051665,-500.0,0.00035616,2]
[341260386,1730733051675,-515.61326369,0.00035616,2]
[341260387,1730733051688,-500.0,0.00035616,2]
[341260388,1730733051697,-500.0,0.00035616,2]
[341260389,1730733051707,-500.0,0.00035616,2]
[341260390,1730733051716,-735.19,0.00035616,2]
[341260391,1730733051726,-500.0,0.00035616,2]
[341260392,1730733051735,-532.57503242,0.00035616,2]
[341260393,1730733051745,-500.0,0.00035616,2]
[341260394,1730733051756,-500.0,0.00035616,2]
[341260395,1730733051766,-507.91937062,0.00035616,2]
[341260396,1730733051776,-500.0,0.00035616,2]
[341260397,1730733051786,-1090.83,0.00035616,2]
[341260398,1730733051796,-500.0,0.00035616,2]
[341260399,1730733051805,-500.0,0.00035616,2]
[341260400,1730733051815,-500.0,0.00035616,2]
[341260401,1730733051825,-500.0,0.00035616,2]
[341260402,1730733051834,-500.0,0.00035616,2]
[341260403,1730733051843,-520.92377539,0.00035616,2]
[341260404,1730733051853,-500.0,0.00035616,2]
[341260405,1730733051863,-500.0,0.00035616,2]
[341260406,1730733051872,-500.0,0.00035616,2]
[341260407,1730733051881,-500.0,0.00035616,2]
[341260408,1730733051891,-500.0,0.00035616,2]
[341260409,1730733051900,-500.0,0.00035616,2]
[341260410,1730733051910,-500.0,0.00035616,2]
[341260411,1730733051919,-500.0,0.00035616,2]
[341260412,1730733051929,-500.0,0.00035616,2]
[341260413,1730733051938,-500.0,0.00035616,2]
[341260414,1730733051947,-655.27,0.00035616,2]
[341260415,1730733051957,-500.0,0.00035616,2]
[341260416,1730733051967,-500.0,0.00035616,2]
[341260417,1730733051977,-500.0,0.00035616,2]
[341260418,1730733051986,-500.0,0.00035616,2]
[341260419,1730733051995,-500.0,0.00035616,2]
[341260420,1730733052004,-500.0,0.00035616,2]
[341260421,1730733052014,-500.0,0.00035616,2]
[341260422,1730733052023,-500.0,0.00035616,2]
[341260423,1730733052033,-500.0,0.00035616,2]
[341260424,1730733052042,-500.0,0.00035616,2]
[341260425,1730733052052,-500.0,0.00035616,2]
[341260426,1730733052061,-685.45,0.00035616,2]
[341260427,1730733052071,-500.0,0.00035616,2]
[341260428,1730733052081,-235.322752,0.00035616,2]
[341260429,1730733052090,-537.90451076,0.00035616,2]
[341260430,1730733052100,-521.01356128,0.00035616,2]
[341260431,1730733052109,-530.98,0.00035616,2]
[341260432,1730733052118,-500.0,0.00035616,2]
[341260433,1730733052128,-636.30407102,0.00035616,2]
[341260434,1730733052137,-500.0,0.00035616,2]
[341260435,1730733052146,-500.0,0.00035616,2]
[341260436,1730733052155,-500.0,0.00035616,2]
[341260437,1730733052165,-500.0,0.00035616,2]
[341260438,1730733052174,-519.86962367,0.00035616,2]
[341260439,1730733052184,-559.79970835,0.00035616,2]
[341260440,1730733052194,-525.97925519,0.00035616,2]
[341260441,1730733052204,-1522.59,0.00035616,2]
[341260442,1730733052215,-500.0,0.00035616,2]
[341260443,1730733052225,-500.0,0.00035616,2]
[341260444,1730733052235,-500.0,0.00035616,2]
[341260445,1730733052245,-504.42574435,0.00035616,2]
[341260446,1730733052255,-500.0,0.00035616,2]
[341260447,1730733052265,-500.0,0.00035616,2]
[341260448,1730733052275,-500.0,0.00035616,2]
[341260449,1730733052284,-361.64202158,0.00035616,2]
[341260450,1730733052294,-500.0,0.00035616,2]
[341260451,1730733052304,-500.0,0.00035616,2]
[341260452,1730733052313,-500.0,0.00035616,2]
[341260453,1730733052322,-500.0,0.00035616,2]
[341260454,1730733052333,-500.0,0.00035616,2]
[341260455,1730733052342,-517.13349971,0.00035616,2]
[341260456,1730733052351,-500.0,0.00035616,2]
[341260457,1730733052361,-500.0,0.00035616,2]
[341260458,1730733052370,-500.0,0.00035616,2]
[341260459,1730733052379,-500.0,0.00035616,2]
[341260460,1730733052389,-450.56,0.00035616,2]
[341260461,1730733052398,-500.0,0.00035616,2]
[341260462,1730733052408,-500.0,0.00035616,2]
[341260463,1730733052418,-695.65,0.00035616,2]
[341260464,1730733052428,-500.0,0.00035616,2]
[341260465,1730733052437,-500.0,0.00035616,2]
[341260466,1730733052447,-540.02,0.00035616,2]
[341260467,1730733052458,-500.0,0.00035616,2]
[341260468,1730733052467,-500.0,0.00035616,2]
[341260469,1730733052477,-500.0,0.00035616,2]
[341260470,1730733052486,-500.0,0.00035616,2]
[341260471,1730733052496,-500.0,0.00035616,2]
[341260472,1730733052506,-234.55776517,0.00035616,2]
[341260473,1730733052515,-500.0,0.00035616,2]
[341260474,1730733052526,-500.0,0.00035616,2]